bitfinex/quotes_BTCUSD_20241211
["timestamp","ask_amount","ask_price","bid_price","bid_amount"]
[1733886003215,0.205542,97304.0,97302.0,0.00016531]
[1733886003416,0.0001716,97310.0,97302.0,0.00016531]
[1733886003873,0.15,97308.0,97302.0,0.00016531]
[1733886004193,0.0829,97306.0,97302.0,0.00016531]
[1733886004407,0.13736406,97305.0,97302.0,0.00016531]
[1733886004612,0.03203882,97304.0,97302.0,0.00316531]
[1733886004810,0.31086424,97305.0,97302.0,0.00316531]
[1733886004811,0.205543,97303.0,97302.0,0.00316531]
[1733886005239,0.0001716,97310.0,97304.0,0.023]
[1733886005436,0.0001716,97310.0,97306.0,0.023]
[1733886005855,0.0001716,97310.0,97304.0,0.023]
[1733886006597,0.0001716,97310.0,97302.0,0.00016531]
[1733886006798,0.002,97308.0,97302.0,0.00016531]
[1733886007030,0.0001716,97310.0,97302.0,0.00016531]
[1733886007460,0.0021716,97310.0,97302.0,0.00016531]
[1733886007660,0.0001716,97310.0,97302.0,0.00016531]
[1733886010525,0.0011716,97310.0,97304.0,0.023]
[1733886011293,0.0001716,97310.0,97304.0,0.023]
[1733886011715,0.0011716,97310.0,97304.0,0.023]
[1733886012665,0.205526,97311.0,97304.0,0.023]
[1733886012877,0.205526,97311.0,97302.0,0.00016531]
[1733886013314,0.10532524,97310.0,97302.0,0.00016531]
[1733886013516,0.205541,97305.0,97302.0,0.00016531]
[1733886013936,0.411082,97305.0,97302.0,0.00016531]
[1733886014346,0.205541,97305.0,97302.0,0.00016531]
[1733886016217,0.15,97314.0,97304.0,0.023]
[1733886016479,0.002,97305.0,97304.0,0.228541]
[1733886017376,0.002,97305.0,97304.0,0.023]
[1733886017571,0.16003753,97316.0,97304.0,0.023]
[1733886018419,0.01003753,97316.0,97306.0,0.023]
[1733886018834,0.1501716,97320.0,97306.0,0.023]
[1733886019058,0.16023056,97320.0,97306.0,0.023]
[1733886019484,0.16023056,97320.0,97308.0,0.023]
[1733886019693,0.001,97316.0,97306.0,0.023]
[1733886019896,0.001,97316.0,97312.0,0.205523]
[1733886019897,0.002,97316.0,97312.0,0.205523]
[1733886020367,0.0011716,97320.0,97319.0,0.205509]
[1733886020573,0.0011716,97320.0,97319.0,0.287809]
[1733886020779,0.0041716,97320.0,97319.0,0.287809]
[1733886020984,0.0031716,97320.0,97319.0,0.287809]
[1733886021414,0.0031716,97320.0,97319.0,0.310809]
[1733886022255,0.0001716,97320.0,97319.0,0.310809]
[1733886023506,0.0001716,97320.0,97319.0,0.317809]
[1733886030492,0.0001716,97320.0,97319.0,0.212509]
[1733886032241,0.0001716,97320.0,97319.0,0.007]
[1733886032645,0.25549684,97320.0,97319.0,0.007]
[1733886033230,0.33389684,97320.0,97319.0,0.007]
[1733886033431,0.33389684,97320.0,97296.0,0.205557]
[1733886033432,0.355509,97319.0,97300.0,0.2057194]
[1733886033637,0.15,97317.0,97300.0,0.2057194]
[1733886033841,0.15,97314.0,97300.0,0.2057194]
[1733886034052,0.10532524,97313.0,97300.0,0.2057194]
[1733886034269,0.15,97312.0,97300.0,0.0001714]
[1733886034468,0.15,97310.0,97300.0,0.0001714]
[1733886034676,0.10532524,97309.0,97300.0,0.0001714]
[1733886036230,0.10532524,97309.0,97303.0,0.205543]
[1733886036461,0.01014563,97320.0,97303.0,0.1003]
[1733886036669,0.10532524,97319.0,97312.0,0.205522]
[1733886036873,0.10532524,97319.0,97309.0,0.20553]
[1733886037664,0.10532524,97319.0,97306.0,0.205537]
[1733886038391,0.10532524,97319.0,97305.0,0.023]
[1733886038604,0.01014563,97320.0,97305.0,0.023]
[1733886038819,0.0001716,97320.0,97318.0,0.023]
[1733886039541,0.001,97319.0,97318.0,0.023]
[1733886039946,0.0001716,97320.0,97318.0,0.023]
[1733886039947,0.0001716,97320.0,97319.0,0.282809]
[1733886040059,0.0001716,97320.0,97319.0,0.354109]
[1733886040263,0.0011716,97320.0,97319.0,0.354109]
[1733886041226,0.0001716,97320.0,97319.0,0.354109]
[1733886041467,0.0011716,97320.0,97319.0,0.361109]
[1733886042812,0.0011716,97320.0,97319.0,0.370109]
[1733886043231,6e-07,97320.0,97319.0,0.47543424]
[1733886043649,8.59e-05,97340.0,97339.0,0.305767]
[1733886043857,8.59e-05,97340.0,97339.0,0.354067]
[1733886044936,0.00063902,97340.0,97339.0,0.354067]
[1733886047237,0.00063902,97340.0,97339.0,0.362067]
[1733886047643,0.01012491,97363.0,97340.0,0.023]
[1733886047644,0.00798627,97363.0,97340.0,0.023]
[1733886047858,8.58e-05,97370.0,97361.0,0.20542]
[1733886048067,0.0001193,97363.0,97357.0,0.205428]
[1733886048473,0.2306,97361.0,97339.0,0.008]
[1733886048677,0.15,97359.0,97341.0,0.205463]
[1733886048893,0.10532524,97358.0,97341.0,0.205463]
[1733886049476,0.10532524,97358.0,97339.0,0.005]
[1733886049718,0.0021193,97363.0,97362.0,0.205418]
[1733886050052,0.0031193,97363.0,97362.0,0.205418]
[1733886050437,0.0001193,97363.0,97362.0,0.205418]
[1733886051999,0.0001193,97363.0,97362.0,0.207418]
[1733886052578,0.0001193,97363.0,97362.0,0.208418]
[1733886052978,0.0001193,97363.0,97362.0,0.207418]
[1733886053261,0.0001193,97363.0,97362.0,0.205418]
[1733886053458,0.0001193,97363.0,97362.0,0.206418]
[1733886053902,0.0001193,97363.0,97362.0,0.205418]
[1733886056441,0.0001193,97363.0,97362.0,0.206418]
[1733886056613,0.0001193,97363.0,97362.0,0.208418]
[1733886056816,0.0001193,97363.0,97362.0,0.207418]
[1733886057024,0.0001193,97363.0,97362.0,0.205418]
[1733886057245,0.0001193,97363.0,97362.0,0.206418]
[1733886057444,0.0001193,97363.0,97362.0,0.209418]
[1733886057999,8e-07,97370.0,97362.0,0.46474324]
[1733886058234,8e-07,97370.0,97369.0,0.0984]
[1733886058463,8e-07,97370.0,97369.0,0.20372524]
[1733886059152,6e-07,97380.0,97374.0,0.173]
[1733886059439,6e-07,97380.0,97369.0,0.27832524]
[1733886059440,6e-07,97380.0,97379.0,0.309483]
[1733886059646,6e-07,97380.0,97379.0,0.41480824]
[1733886060374,6e-07,97380.0,97379.0,0.46310824]
[1733886060805,6e-07,97380.0,97379.0,0.47010824]
[1733886061260,6e-07,97380.0,97379.0,0.47910824]
[1733886061469,0.0001718,97390.0,97388.0,0.205364]
[1733886061673,0.0001718,97390.0,97388.0,0.228364]
[1733886063492,0.0001718,97390.0,97388.0,0.233364]
[1733886064178,0.0001718,97390.0,97388.0,0.323464]
[1733886064432,0.0001718,97390.0,97388.0,0.42878924]
[1733886064640,0.0001718,97390.0,97388.0,0.41978924]
[1733886064851,0.0001718,97390.0,97388.0,0.42878924]
[1733886065262,0.0001718,97390.0,97389.0,0.12832524]
[1733886065466,8e-07,97390.0,97389.0,0.12832524]
[1733886066480,8e-07,97390.0,97389.0,0.13532524]
[1733886066682,8e-07,97390.0,97389.0,0.21312524]
[1733886067062,8e-07,97390.0,97389.0,0.26002524]
[1733886067459,0.0004,97409.0,97408.0,0.228321]
[1733886067661,0.0004,97409.0,97408.0,0.306121]
[1733886068495,0.0004,97409.0,97408.0,0.023]
[1733886068748,0.0004,97409.0,97408.0,0.00016531]
[1733886070079,0.0004,97409.0,97408.0,0.03316531]
[1733886070414,0.0004,97409.0,97408.0,0.02516531]
[1733886070763,0.0004,97409.0,97408.0,0.03216531]
[1733886071171,0.0004,97409.0,97408.0,0.10996531]
[1733886071578,0.0004,97409.0,97408.0,0.10096531]
[1733886071912,0.0004,97409.0,97408.0,0.10896531]
[1733886072068,0.0004,97409.0,97408.0,0.11196531]
[1733886072675,0.0004,97409.0,97408.0,0.10896531]
[1733886073022,0.0004,97409.0,97408.0,0.11096531]
[1733886073253,0.0004,97409.0,97408.0,0.10296531]
[1733886073661,0.0004,97409.0,97408.0,0.10796531]
[1733886074037,0.0004,97409.0,97408.0,0.10096531]
[1733886074239,0.0004,97409.0,97408.0,0.10496531]
[1733886075394,0.0004,97409.0,97408.0,0.09467631]
[1733886075870,0.0004,97409.0,97408.0,0.09367631]
[1733886076481,0.0004,97429.0,97419.0,0.205298]
[1733886077547,0.0004,97429.0,97419.0,0.307298]
[1733886078305,0.0004,97429.0,97419.0,0.311298]
[1733886078510,0.0004,97429.0,97419.0,0.228298]
[1733886079294,0.0004,97429.0,97419.0,0.229298]
[1733886079730,0.15,97422.0,97419.0,0.001]
[1733886079963,0.15,97422.0,97407.0,0.205322]
[1733886079964,0.10541094,97420.0,97407.0,0.205322]
[1733886080165,0.10541094,97420.0,97389.0,0.205361]
[1733886080166,0.205317,97411.0,97397.0,0.205343]
[1733886080316,0.15,97408.0,97397.0,0.205343]
[1733886080517,0.10532524,97407.0,97397.0,0.205343]
[1733886080960,0.10532524,97407.0,97380.0,0.0791716]
[1733886080961,0.0762,97405.0,97380.0,0.0001716]
[1733886081155,0.15,97391.0,97380.0,0.0001716]
[1733886081317,0.15,97389.0,97380.0,0.0001716]
[1733886081519,0.15,97387.0,97380.0,0.0001716]
[1733886081718,0.205357,97392.0,97380.0,0.0001716]
[1733886081719,0.15,97385.0,97380.0,0.0001716]
[1733886082541,0.31069724,97384.0,97380.0,0.0001716]
[1733886082742,0.15,97381.0,97380.0,0.0001716]
[1733886082948,0.25532524,97381.0,97380.0,0.0001716]
[1733886086768,0.33152524,97381.0,97380.0,0.0001716]
[1733886086994,0.48152524,97381.0,97380.0,0.0001716]
[1733886087202,0.66339454,97381.0,97380.0,0.0001716]
[1733886087421,0.66339454,97381.0,97330.0,0.0467714]
[1733886087422,0.15,97359.0,97337.0,0.410942]
[1733886087632,0.205444,97351.0,97330.0,0.0467714]
[1733886087836,0.15,97357.0,97332.0,0.20548]
[1733886088042,0.15,97355.0,97343.0,0.205457]
[1733886088253,0.25532524,97355.0,97343.0,0.205457]
[1733886088888,0.15,97353.0,97338.0,0.205469]
[1733886089089,0.15,97351.0,97338.0,0.205469]
[1733886089263,0.205435,97354.0,97336.0,0.00055312]
[1733886089264,0.15,97349.0,97336.0,0.00055312]
[1733886089464,0.10532524,97348.0,97336.0,0.00055312]
[1733886089675,0.15,97347.0,97336.0,0.00055312]
[1733886089908,0.355454,97345.0,97336.0,0.00055312]
[1733886090118,0.205468,97339.0,97336.0,0.00055312]
[1733886090265,0.25532524,97338.0,97336.0,0.00055312]
[1733886090472,0.15,97337.0,97336.0,0.00055312]
[1733886090678,0.25532524,97337.0,97336.0,0.00055312]
[1733886090876,0.25532524,97337.0,97336.0,0.00455312]
[1733886091264,0.40532524,97337.0,97336.0,0.00155312]
[1733886091518,0.40532524,97337.0,97336.0,0.00055312]
[1733886091727,0.41532524,97337.0,97336.0,0.00155312]
[1733886091926,0.57232156,97337.0,97336.0,0.00055312]
[1733886092280,0.57832156,97337.0,97336.0,0.00155312]
[1733886093480,0.57432156,97337.0,97336.0,0.00155312]
[1733886093814,0.57832156,97337.0,97336.0,0.00155312]
[1733886095460,0.12832156,97337.0,97336.0,0.00155312]
[1733886095660,0.02299632,97337.0,97336.0,0.00155312]
[1733886095886,0.01,97337.0,97336.0,0.00155312]
[1733886096285,0.01,97337.0,97336.0,0.02455312]
[1733886096934,0.006,97337.0,97336.0,0.02455312]
[1733886097165,0.009,97337.0,97336.0,0.02455312]
[1733886097495,0.003,97337.0,97336.0,0.00055312]
[1733886097695,0.01271666,97362.0,97356.0,0.023]
[1733886097946,0.10532524,97361.0,97358.0,0.023]
[1733886098454,0.10532524,97361.0,97357.0,0.023]
[1733886098658,0.10532524,97361.0,97355.0,0.023]
[1733886098972,0.10532524,97361.0,97357.0,0.023]
[1733886099354,0.005,97361.0,97358.0,0.410854]
[1733886099606,0.005,97361.0,97359.0,0.023]
[1733886100323,0.10532524,97360.0,97342.0,0.023]
[1733886100533,0.10532524,97360.0,97341.0,0.205461]
[1733886100534,0.10532524,97360.0,97358.0,0.023]
[1733886100735,0.205372,97384.0,97367.0,0.205406]
[1733886100947,0.10532524,97383.0,97368.0,0.023]
[1733886101154,0.205376,97382.0,97365.0,0.023]
[1733886101355,0.10532524,97381.0,97365.0,0.023]
[1733886101504,0.20538,97380.0,97362.0,0.023]
[1733886101705,0.10532524,97379.0,97362.0,0.023]
[1733886101911,0.10532524,97379.0,97362.0,0.0231193]
[1733886102127,0.56077,97378.0,97362.0,0.0001193]
[1733886102488,0.205396,97373.0,97365.0,0.001]
[1733886102662,0.15,97376.0,97362.0,0.0001193]
[1733886102663,0.10532524,97372.0,97362.0,0.0001193]
[1733886104469,0.10632524,97372.0,97362.0,0.0001193]
[1733886104678,0.15,97365.0,97362.0,0.0001193]
[1733886104874,0.15,97363.0,97362.0,0.0001193]
[1733886105039,0.25532524,97363.0,97362.0,0.0001193]
[1733886106006,0.25532524,97363.0,97362.0,0.0011193]
[1733886107137,0.25532524,97363.0,97362.0,0.0001193]
[1733886107590,0.25532524,97363.0,97362.0,0.0021193]
[1733886107787,0.25532524,97363.0,97362.0,0.0001193]
[1733886108222,0.26132524,97363.0,97362.0,0.0011193]
[1733886108428,0.25532524,97363.0,97362.0,0.0001193]
[1733886108847,0.41132524,97363.0,97362.0,0.0011193]
[1733886108984,0.58423986,97363.0,97362.0,0.0011193]
[1733886109182,0.57823986,97363.0,97362.0,0.0001193]
[1733886109594,0.72823986,97363.0,97362.0,0.0001193]
[1733886110200,0.55732524,97363.0,97362.0,0.0001193]
[1733886110449,0.25732524,97363.0,97362.0,0.0001193]
[1733886110654,0.006,97363.0,97362.0,0.0011193]
[1733886111011,0.38403524,97363.0,97362.0,3e-07]
[1733886111235,0.38403524,97363.0,97296.0,0.15]
[1733886111236,0.15,97339.0,97314.0,0.01249789]
[1733886111424,0.205484,97331.0,97314.0,0.01249789]
[1733886111672,0.31080924,97331.0,97313.0,0.081]
[1733886112073,0.46080924,97331.0,97313.0,0.081]
[1733886112690,0.46080924,97331.0,97310.0,0.0491]
[1733886113019,0.46097431,97331.0,97310.0,0.0491]
[1733886113403,0.47397454,97331.0,97310.0,0.0491]
[1733886113607,0.47697454,97331.0,97310.0,0.0491]
[1733886114010,0.47797454,97331.0,97310.0,0.0491]
[1733886114340,0.47397454,97331.0,97310.0,0.0491]
[1733886114546,0.12549054,97331.0,97310.0,0.0491]
[1733886114762,0.00716507,97331.0,97330.0,0.1041714]
[1733886115370,0.00316507,97331.0,97330.0,0.1041714]
[1733886115783,0.00716507,97331.0,97330.0,0.1041714]
[1733886116211,0.00416507,97331.0,97330.0,0.1041714]
[1733886116622,0.00716507,97331.0,97330.0,0.1041714]
[1733886117025,0.00416507,97331.0,97330.0,0.1041714]
[1733886117178,0.00016507,97331.0,97330.0,0.1041714]
[1733886117388,0.00016507,97331.0,97330.0,0.1071714]
[1733886117952,0.00016507,97331.0,97330.0,0.1051714]
[1733886118154,0.10649031,97331.0,97330.0,0.0031714]
[1733886118353,0.25649031,97331.0,97330.0,0.0031714]
[1733886118580,0.28842459,97331.0,97330.0,0.0031714]
[1733886118918,0.30032777,97331.0,97330.0,0.0001714]
[1733886119759,0.30032777,97331.0,97330.0,0.0011714]
[1733886120207,0.30032777,97331.0,97330.0,0.0031714]
[1733886120623,0.30032777,97331.0,97330.0,0.0001714]
[1733886120828,0.30332777,97331.0,97330.0,0.0001714]
[1733886121028,0.30632777,97331.0,97330.0,0.0001714]
[1733886121321,0.30332777,97331.0,97330.0,0.0001714]
[1733886121702,0.30432777,97331.0,97330.0,0.0001714]
[1733886122119,0.30032777,97331.0,97330.0,0.0001714]
[1733886123179,0.30332777,97331.0,97330.0,0.0001714]
[1733886123383,0.30732777,97331.0,97330.0,0.0001714]
[1733886123531,0.30432777,97331.0,97330.0,0.0001714]
[1733886123735,0.30032777,97331.0,97330.0,0.0001714]
[1733886123930,0.30332777,97331.0,97330.0,0.0001714]
[1733886124134,0.30732777,97331.0,97330.0,0.0001714]
[1733886124337,0.30332777,97331.0,97330.0,0.0001714]
[1733886124562,0.30032777,97331.0,97330.0,0.0001714]
[1733886124733,0.30732777,97331.0,97330.0,0.0001714]
[1733886124960,0.30332777,97331.0,97330.0,0.0001714]
[1733886125322,0.30732777,97331.0,97330.0,0.0001714]
[1733886126029,0.30432777,97331.0,97330.0,0.0001714]
[1733886126244,0.00416507,97331.0,97330.0,0.0001714]
[1733886126465,0.00716507,97331.0,97330.0,0.0767714]
[1733886126665,0.00316507,97331.0,97330.0,0.0767714]
[1733886126871,0.00316507,97331.0,97330.0,0.0001714]
[1733886127115,0.00416507,97331.0,97330.0,0.0001714]
[1733886127288,0.00316507,97331.0,97330.0,0.0001714]
[1733886127721,0.25549031,97331.0,97330.0,0.0021714]
[1733886127933,0.25549031,97331.0,97330.0,0.0001714]
[1733886128134,0.28942406,97331.0,97330.0,0.0001714]
[1733886128365,0.29142406,97331.0,97330.0,0.0001714]
[1733886128561,0.28942406,97331.0,97330.0,0.0001714]
[1733886128764,0.25749031,97331.0,97330.0,0.0001714]
[1733886129195,0.28942394,97331.0,97330.0,0.0001714]
[1733886129348,0.28742394,97331.0,97330.0,0.0001714]
[1733886129524,0.25549031,97331.0,97330.0,0.0001714]
[1733886129727,0.25849031,97331.0,97330.0,0.0001714]
[1733886129946,0.26249031,97331.0,97330.0,0.0001714]
[1733886130367,0.25549031,97331.0,97330.0,0.0001714]
[1733886130546,0.25849031,97331.0,97330.0,0.0001714]
[1733886130785,0.26249031,97331.0,97330.0,0.0001714]
[1733886130956,0.00016507,97331.0,97330.0,0.0001714]
[1733886131366,0.00716507,97331.0,97330.0,0.0001714]
[1733886131567,0.00316507,97331.0,97330.0,0.0001714]
[1733886131998,0.00716507,97331.0,97330.0,0.0001714]
[1733886132599,0.00416507,97331.0,97330.0,0.0001714]
[1733886132798,0.00616507,97331.0,97330.0,0.0001714]
[1733886133155,0.00216507,97331.0,97330.0,0.0001714]
[1733886133357,0.00016507,97331.0,97330.0,0.0001714]
[1733886133539,0.00116507,97331.0,97330.0,0.0011714]
[1733886133743,0.00116507,97331.0,97330.0,0.0001714]
[1733886134174,0.00016507,97331.0,97330.0,0.0767714]
[1733886134599,0.00016507,97331.0,97330.0,0.0777714]
[1733886135466,0.00016507,97331.0,97330.0,0.0767714]
[1733886136810,0.00016507,97331.0,97330.0,0.0777714]
[1733886136957,0.00016507,97331.0,97330.0,0.0767714]
[1733886137156,0.00016507,97331.0,97330.0,0.0807714]
[1733886137358,0.00016507,97331.0,97330.0,0.0817714]
[1733886137713,0.00016507,97331.0,97330.0,0.1047714]
[1733886137969,0.00016507,97331.0,97330.0,0.1037714]
[1733886138805,0.00016507,97331.0,97330.0,0.0807714]
[1733886139016,0.10549031,97331.0,97330.0,0.0041714]
[1733886139421,0.10549031,97331.0,97330.0,0.0051714]
[1733886139625,0.25549031,97331.0,97330.0,0.0051714]
[1733886139826,0.25549031,97331.0,97330.0,0.0041714]
[1733886139978,0.25549031,97331.0,97330.0,0.0001714]
[1733886140187,0.00216507,97331.0,97330.0,0.0001714]
[1733886140422,0.00516507,97331.0,97330.0,0.0001714]
[1733886140614,0.00016507,97331.0,97330.0,0.0001714]
[1733886140967,0.00716507,97331.0,97330.0,0.0001714]
[1733886141804,0.00316507,97331.0,97330.0,0.0001714]
[1733886142447,0.00016507,97331.0,97330.0,0.0001714]
[1733886143436,0.00016507,97331.0,97330.0,0.0021714]
[1733886143547,0.00016507,97331.0,97330.0,0.0001714]
[1733886143948,0.00016507,97331.0,97330.0,0.0021714]
[1733886144152,0.00016507,97331.0,97330.0,0.1271714]
[1733886144782,0.00016507,97331.0,97330.0,0.1251714]
[1733886145065,0.00016507,97331.0,97330.0,0.1271714]
[1733886146427,0.00016507,97331.0,97330.0,0.1251714]
[1733886146835,0.00116507,97331.0,97330.0,0.1301714]
[1733886147042,0.00016507,97331.0,97330.0,0.1261714]
[1733886147440,0.00016507,97331.0,97330.0,0.1291714]
[1733886147676,0.00016507,97331.0,97330.0,0.1251714]
[1733886147894,0.00016507,97331.0,97330.0,0.1271714]
[1733886148082,0.00116507,97331.0,97330.0,0.1331714]
[1733886148239,0.00016507,97331.0,97330.0,0.1271714]
[1733886148648,0.00016507,97331.0,97330.0,0.1501714]
[1733886149309,0.00016507,97331.0,97330.0,0.1481714]
[1733886149738,0.00116507,97331.0,97330.0,0.1561714]
[1733886150108,0.00016507,97331.0,97330.0,0.1481714]
[1733886150485,0.00116507,97331.0,97330.0,0.1561714]
[1733886150914,0.00116507,97331.0,97330.0,0.1501714]
[1733886150915,0.00016507,97331.0,97330.0,0.1501714]
[1733886151116,0.00016507,97331.0,97330.0,0.1481714]
[1733886151272,0.00116507,97331.0,97330.0,0.1561714]
[1733886151468,0.00016507,97331.0,97330.0,0.1501714]
[1733886153059,0.00016507,97331.0,97330.0,0.1481714]
[1733886153411,0.00116507,97331.0,97330.0,0.1591714]
[1733886153826,8.58e-05,97370.0,97369.0,0.284204]
[1733886154030,0.10549046,97370.0,97369.0,0.0788]
[1733886154247,0.00016522,97370.0,97369.0,0.205404]
[1733886155731,0.00016522,97370.0,97369.0,0.285704]
[1733886155957,0.00316522,97370.0,97369.0,0.285704]
[1733886156317,0.00316522,97370.0,97369.0,0.308704]
[1733886156566,8.58e-05,97380.0,97379.0,0.205383]
[1733886156764,8.58e-05,97380.0,97379.0,0.308683]
[1733886156947,8.58e-05,97380.0,97379.0,0.45920824]
[1733886157183,8.58e-05,97380.0,97379.0,0.60920824]
[1733886157995,8.58e-05,97380.0,97379.0,0.61820824]
[1733886158407,8.58e-05,97380.0,97379.0,0.60920824]
[1733886158615,8.58e-05,97380.0,97379.0,0.61820824]
[1733886159099,8.58e-05,97380.0,97379.0,0.46820824]
[1733886159310,8.58e-05,97380.0,97379.0,0.347883]
[1733886159941,8.58e-05,97380.0,97379.0,0.339883]
[1733886160086,8.58e-05,97380.0,97379.0,0.34630302]
[1733886160297,8.58e-05,97380.0,97379.0,0.35030302]
[1733886160504,8.58e-05,97380.0,97379.0,0.34130302]
[1733886160891,0.0010858,97380.0,97379.0,0.339883]
[1733886161238,8.58e-05,97380.0,97379.0,0.330883]
[1733886161648,8.58e-05,97380.0,97379.0,0.1255]
[1733886162065,0.0010858,97380.0,97379.0,0.1345]
[1733886162267,8.58e-05,97380.0,97379.0,0.1255]
[1733886162487,8.58e-05,97380.0,97379.0,0.1295]
[1733886162999,8.58e-05,97380.0,97379.0,0.1255]
[1733886163143,8.58e-05,97380.0,97379.0,0.1285]
[1733886163918,0.0010858,97380.0,97379.0,0.1375]
[1733886164101,0.0010858,97380.0,97379.0,0.1345]
[1733886164327,8.58e-05,97380.0,97379.0,0.1255]
[1733886164531,8.58e-05,97390.0,97389.0,0.205362]
[1733886164658,8.58e-05,97390.0,97389.0,0.38828724]
[1733886165049,8.58e-05,97390.0,97389.0,0.39470674]
[1733886165305,8.58e-05,97390.0,97389.0,0.41770674]
[1733886165451,8.58e-05,97390.0,97389.0,0.71770674]
[1733886165682,8.58e-05,97440.0,97419.0,0.205298]
[1733886166376,0.01199271,97430.0,97419.0,0.205298]
[1733886167097,0.00025095,97420.0,97419.0,0.002]
[1733886167344,0.00025095,97420.0,97419.0,0.207298]
[1733886167542,0.00025095,97420.0,97419.0,0.205298]
[1733886167742,0.15,97432.0,97428.0,0.205279]
[1733886167993,0.15,97432.0,97420.0,0.205296]
[1733886168258,0.15,97432.0,97427.0,0.20528]
[1733886168449,0.15,97432.0,97421.0,0.205294]
[1733886168450,8.58e-05,97440.0,97436.0,0.205261]
[1733886168652,8.58e-05,97440.0,97436.0,0.410522]
[1733886170971,8.58e-05,97440.0,97436.0,0.415522]
[1733886171276,8.58e-05,97440.0,97436.0,0.413522]
[1733886171676,8.58e-05,97440.0,97438.0,0.205258]
[1733886171886,0.0004,97449.0,97448.0,0.205237]
[1733886172128,0.0004,97449.0,97448.0,0.251937]
[1733886173012,0.0004,97469.0,97448.0,0.251937]
[1733886173013,1e-06,97469.0,97468.0,0.355195]
[1733886173216,8.57e-05,97480.0,97479.0,0.3]
[1733886173418,7e-07,97480.0,97479.0,0.57000118]
[1733886173828,7e-07,97480.0,97479.0,0.72000118]
[1733886174032,7e-07,97480.0,97479.0,0.72646418]
[1733886174175,7e-07,97480.0,97479.0,0.63292524]
[1733886174377,0.15,97538.0,97479.0,0.63292524]
[1733886174378,0.205031,97546.0,97490.0,0.3]
[1733886174573,0.205043,97541.0,97508.0,0.205111]
[1733886174819,0.00056521,97509.0,97508.0,0.205111]
[1733886176007,0.00056521,97509.0,97505.0,0.205115]
[1733886176209,0.02356521,97509.0,97505.0,0.205115]
[1733886176610,0.02356521,97509.0,97508.0,0.003]
[1733886177013,0.02356521,97509.0,97505.0,0.410232]
[1733886177014,0.02356521,97509.0,97505.0,0.205115]
[1733886177215,0.02356521,97509.0,97505.0,0.211115]
[1733886177771,0.02356521,97509.0,97505.0,0.208115]
[1733886177901,0.02356521,97509.0,97508.0,0.006]
[1733886178106,0.02356521,97509.0,97505.0,0.208115]
[1733886179244,0.02356521,97509.0,97505.0,0.214115]
[1733886179417,0.02356521,97509.0,97505.0,0.211115]
[1733886179623,0.02356521,97509.0,97505.0,0.416232]
[1733886179828,0.02356521,97509.0,97505.0,0.419232]
[1733886180028,0.02356521,97509.0,97507.0,0.205113]
[1733886181326,0.02356521,97509.0,97507.0,0.207113]
[1733886181730,0.02356521,97509.0,97507.0,0.212113]
[1733886181955,0.02356521,97509.0,97507.0,0.207113]
[1733886182359,0.02356521,97509.0,97507.0,0.214113]
[1733886182760,0.02356521,97509.0,97507.0,0.212113]
[1733886182964,0.02356521,97509.0,97507.0,0.215113]
[1733886183182,0.02356521,97509.0,97507.0,0.01]
[1733886183429,0.02356521,97509.0,97508.0,0.205111]
[1733886184256,0.02356521,97509.0,97507.0,0.009]
[1733886184482,0.02356521,97509.0,97495.0,0.0492]
[1733886184713,0.02356521,97509.0,97460.0,0.18231292]
[1733886184714,0.02356521,97509.0,97484.0,0.205161]
[1733886184916,0.02356521,97509.0,97508.0,0.007]
[1733886185123,0.06840798,97509.0,97508.0,0.002]
[1733886185307,0.12889045,97509.0,97508.0,0.002]
[1733886185918,0.12889045,97509.0,97507.0,0.005]
[1733886186118,0.205111,97508.0,97507.0,0.005]
[1733886186326,0.228111,97508.0,97507.0,0.007]
[1733886186544,0.33343624,97508.0,97507.0,0.007]
[1733886186751,0.33343624,97508.0,97507.0,0.002]
[1733886186953,0.023,97507.0,97489.0,0.205151]
[1733886187598,0.023,97503.0,97489.0,0.205151]
[1733886188019,0.023,97501.0,97486.0,0.205157]
[1733886188450,0.023,97501.0,97486.0,0.410314]
[1733886188659,0.023,97501.0,97481.0,0.0492]
[1733886188660,0.023,97497.0,97481.0,0.0492]
[1733886188869,0.023,97497.0,97471.0,0.205188]
[1733886188870,0.023,97490.0,97478.0,0.205174]
[1733886189075,0.023,97490.0,97478.0,0.410348]
[1733886189278,0.023,97491.0,97478.0,0.205174]
[1733886189487,0.228148,97491.0,97478.0,0.205174]
[1733886189699,0.228148,97491.0,97465.0,0.0779]
[1733886189700,0.023,97491.0,97488.0,0.205152]
[1733886190747,0.023,97491.0,97487.0,0.205154]
[1733886191454,0.01216294,97508.0,97488.0,0.004]
[1733886191455,0.023,97497.0,97488.0,0.004]
[1733886191666,0.023,97496.0,97478.0,0.205172]
[1733886191879,0.023,97496.0,97467.0,0.205197]
[1733886192108,0.023,97496.0,97487.0,0.004]
[1733886192321,0.31046124,97497.0,97479.0,0.20517]
[1733886192322,0.023,97494.0,97479.0,0.20517]
[1733886192536,0.205162,97484.0,97468.0,0.205195]
[1733886192755,0.023,97483.0,97473.0,0.205183]
[1733886193177,0.173,97492.0,97451.0,0.20523]
[1733886193387,0.18231292,97480.0,97453.0,0.0779]
[1733886193616,0.228201,97466.0,97445.0,0.0492]
[1733886193826,0.023,97466.0,97445.0,0.0492]
[1733886194251,0.205206,97463.0,97446.0,0.205241]
[1733886194474,0.023,97462.0,97446.0,0.205241]
[1733886194900,0.023,97462.0,97446.0,0.10532524]
[1733886195107,0.00016509,97462.0,97448.0,0.205236]
[1733886195314,0.00016509,97462.0,97461.0,0.20521]
[1733886195740,0.00016509,97462.0,97449.0,0.10532524]
[1733886195741,0.00016509,97462.0,97455.0,0.205222]
[1733886195947,0.00016509,97462.0,97461.0,0.20521]
[1733886196152,0.00016509,97462.0,97456.0,0.20522]
[1733886196567,0.00016509,97462.0,97446.0,0.001]
[1733886196770,0.00016509,97462.0,97457.0,0.205218]
[1733886196926,0.00016509,97462.0,97448.0,0.002]
[1733886197130,0.00016509,97462.0,97459.0,0.205212]
[1733886197353,0.00016509,97462.0,97461.0,0.006]
[1733886197907,0.023,97454.0,97431.0,0.046]
[1733886198094,0.023,97452.0,97431.0,0.251272]
[1733886198452,0.205229,97452.0,97431.0,0.251272]
[1733886198694,0.023,97458.0,97431.0,0.046]
[1733886198695,0.205249,97443.0,97431.0,0.046]